bitfinex-derivatives/quotes_ETHF0:USTF0_20260104
["timestamp","ask_amount","ask_price","bid_price","bid_amount"]
[1767502064737,0.00475813,3153.4,3152.5,1.38510232]
[1767502065437,0.00475813,3153.4,3152.1,0.66577607]
[1767502065638,0.00475813,3153.4,3152.5,1.38510232]
[1767502065939,0.00475813,3153.4,3152.5,1.3996604]
[1767502066330,0.00475813,3153.4,3152.4,0.13849004]
[1767502066836,0.00475813,3153.4,3152.4,1.53815044]
[1767502067537,0.00475813,3153.4,3152.4,1.53087603]
[1767502068437,0.00475813,3153.4,3152.4,0.13849004]
[1767502068646,0.00475813,3153.4,3152.4,1.50830803]
[1767502069134,0.52728603,3153.3,3152.0,0.13849004]
[1767502069339,0.52728603,3153.3,3152.4,1.36981799]
[1767502069542,0.52728603,3153.3,3152.4,1.35515501]
[1767502070748,6.52728603,3153.3,3152.0,0.13849004]
[1767502071043,0.52728603,3153.3,3152.0,0.13849004]
[1767502072442,0.52728603,3153.3,3152.0,1.5398984]
[1767502073736,0.52728603,3153.3,3152.0,1.53883385]
[1767502075144,0.52728603,3153.3,3152.0,1.49340524]
[1767502075447,0.00475813,3153.4,3152.0,1.49340524]
[1767502077137,0.00475813,3153.4,3152.0,1.54320023]
[1767502078345,0.00475813,3153.4,3152.0,1.50526853]
[1767502080148,0.00475813,3153.4,3152.1,0.13098128]
[1767502081853,0.00475813,3153.4,3152.1,1.53975981]
[1767502082251,0.00475813,3153.4,3152.2,0.13098128]
[1767502082754,0.00475813,3153.4,3152.3,0.13098128]
[1767502083652,0.00475813,3153.4,3152.3,1.52671672]
[1767502083852,0.00475813,3153.4,3152.3,0.13098128]
[1767502084152,0.00475813,3153.4,3152.3,1.49282725]
[1767502085149,0.00475813,3153.4,3152.3,1.48610648]
[1767502085751,0.00475813,3153.4,3152.3,0.13098128]
[1767502086144,0.00475813,3153.4,3152.3,1.48610648]
[1767502086449,0.00475813,3153.4,3152.3,0.13098128]
[1767502086653,0.00475813,3153.4,3152.3,1.49098272]
[1767502087353,0.00475813,3153.4,3152.3,1.52497784]
[1767502088454,0.00475813,3153.4,3152.3,1.49095592]
[1767502089449,0.00475813,3153.4,3152.3,0.13098128]
[1767502089654,0.00475813,3153.4,3152.3,1.4892207]
[1767502089954,0.00475813,3153.4,3152.3,0.13098128]
[1767502090456,0.00475813,3153.4,3152.3,1.4892207]
[1767502092354,0.00475813,3153.4,3152.3,1.49237676]
[1767502092555,0.00475813,3153.4,3152.4,0.13098128]
[1767502094164,0.00475813,3153.4,3152.4,1.53270237]
[1767502094656,0.00475813,3153.4,3152.4,0.13098128]
[1767502094960,0.00475813,3153.4,3152.4,1.53270237]
[1767502095465,0.00475813,3153.4,3152.4,0.13098128]
[1767502095662,0.52728603,3153.3,3152.4,1.36478315]
[1767502095964,0.52728603,3153.3,3152.4,1.36481171]
[1767502096372,0.52728603,3153.3,3152.0,0.13098128]
[1767502096573,0.00475813,3153.4,3152.4,1.36478371]
[1767502096870,0.00475813,3153.4,3152.4,1.3588137]
[1767502098368,0.00475813,3153.4,3152.4,1.3701075]
[1767502098770,0.00475813,3153.4,3152.0,0.13098128]
[1767502100474,0.00475813,3153.4,3152.1,0.13098128]
[1767502100674,0.00475813,3153.4,3152.1,1.4876431]
[1767502101474,0.00475813,3153.4,3152.1,1.48572846]
[1767502102478,0.00475813,3153.4,3152.1,1.49075314]
[1767502103077,0.00475813,3153.4,3152.2,0.13098128]
[1767502104076,0.00475813,3153.4,3152.2,1.51320339]
[1767502104989,0.00475813,3153.4,3152.2,0.13098128]
[1767502105275,0.00475813,3153.4,3152.2,1.52391453]
[1767502106866,0.00475813,3153.4,3152.2,1.50165474]
[1767502108486,0.00475813,3153.4,3152.2,1.49154012]
[1767502109682,0.00475813,3153.4,3152.2,0.13098128]
[1767502110481,0.00475813,3153.4,3152.2,1.52474485]
[1767502111285,0.00475813,3153.4,3152.2,0.13098128]
[1767502111474,0.00475813,3153.4,3152.2,1.49904647]
[1767502112975,0.00475813,3153.4,3152.2,1.52022092]
[1767502113376,0.00475813,3153.4,3152.3,0.13522497]
[1767502115977,0.00475813,3153.4,3152.3,1.50171888]
[1767502116283,0.00475813,3153.4,3152.4,0.13522497]
[1767502117485,0.00475813,3153.4,3152.4,1.50171888]
[1767502119590,0.00475813,3153.4,3152.4,0.13522497]
[1767502119889,0.00475813,3153.4,3152.4,1.53439924]
[1767502120089,0.00475813,3153.4,3152.4,0.13522497]
[1767502120492,0.00475813,3153.4,3152.4,1.53439924]
[1767502120892,0.00475813,3153.4,3152.4,1.49415863]
[1767502122191,0.00475813,3153.4,3152.4,1.53320098]
[1767502122494,0.00475813,3153.4,3152.4,0.13522497]
[1767502122987,4.34661,3153.7,3152.4,0.13522497]
[1767502123188,1.02525333,3153.6,3152.5,0.13522497]
[1767502123388,1.02525333,3153.5,3152.5,1.50760597]
[1767502123685,0.15861,3153.7,3152.5,1.50760597]
[1767502123886,1.02521745,3153.6,3152.5,1.50760597]
[1767502124093,1.02521745,3153.5,3152.5,1.50760597]
[1767502124393,0.15861,3153.7,3152.5,1.50760597]
[1767502124596,1.02453131,3153.6,3152.5,1.53555122]
[1767502124792,0.00475813,3153.4,3152.5,1.53555122]
[1767502125489,0.00475813,3153.4,3152.5,0.13522497]
[1767502125696,0.00475813,3153.4,3152.5,1.51579664]
[1767502126200,0.00475813,3153.4,3152.6,0.13522497]
[1767502127788,0.00475813,3153.4,3152.6,1.51892525]
[1767502128495,0.00475813,3153.4,3152.6,0.13522497]
[1767502128796,0.00475813,3153.4,3152.6,1.51892525]
[1767502129189,0.00475813,3153.4,3152.6,1.38370028]
[1767502129995,0.00475813,3153.4,3152.6,1.40675732]
[1767502131193,0.00475813,3153.4,3152.6,1.37105765]
[1767502131588,0.00475813,3153.4,3152.2,0.13522497]
[1767502132489,0.00475813,3153.4,3152.2,1.50628262]
[1767502132691,0.00475813,3153.4,3152.3,0.13522497]
[1767502134298,0.00475813,3153.4,3152.3,1.49052097]
[1767502134488,0.00475813,3153.4,3152.3,0.13522497]
[1767502134997,0.00475813,3153.4,3152.3,1.49052097]
[1767502135385,0.00475813,3153.4,3152.3,1.50278197]
[1767502137500,0.00475813,3153.4,3152.3,0.13522497]
[1767502138598,0.00475813,3153.4,3152.3,1.50754515]
[1767502138799,0.00475813,3153.4,3152.3,0.13522497]
[1767502139000,1.70798605,3154.2,3152.3,0.13522497]
[1767502139199,4.187,3154.1,3152.4,0.13522497]
[1767502139402,1.02445356,3154.0,3152.5,0.13522497]
[1767502139594,1.02445356,3153.9,3152.5,0.13522497]
[1767502139789,1.02445356,3153.8,3152.5,0.13522497]
[1767502140003,0.00475813,3153.5,3152.6,0.13522497]
[1767502140203,0.00475813,3153.5,3152.6,1.4952702]
[1767502141402,0.00475813,3153.5,3152.6,1.51676408]
[1767502141704,0.00475813,3153.5,3152.6,0.13522497]
[1767502142805,0.15859,3154.2,3152.7,0.14509404]
[1767502143006,4.188,3154.0,3152.7,0.14509404]
[1767502143204,1.70798605,3154.7,3152.7,1.51475247]
[1767502143509,1.02398883,3154.5,3152.8,0.14509404]
[1767502143708,1.02398883,3154.4,3152.9,0.14509404]
[1767502144002,0.00475813,3154.0,3153.3,0.00475813]
[1767502147011,4.188,3154.7,3153.3,0.14985217]
[1767502147210,4.188,3154.7,3153.3,1.5342347]
[1767502147505,6.00379649,3154.6,3153.4,0.14509404]
[1767502147711,0.00379649,3154.6,3153.5,0.14509404]
[1767502147911,0.00379649,3154.6,3153.5,1.51206861]
[1767502148210,0.00379649,3154.6,3153.6,0.14509404]
[1767502149010,0.00379649,3154.6,3153.6,1.54790132]
[1767502149508,0.00379649,3154.6,3153.6,0.14509404]
[1767502150102,0.00379649,3154.6,3153.6,1.54790132]
[1767502150514,0.00379649,3154.6,3153.6,0.14509404]
[1767502150697,0.00379649,3154.6,3153.3,0.00475813]
[1767502150905,0.14141742,3154.6,3153.3,0.00475813]
[1767502153011,0.00379649,3154.6,3153.3,0.14985217]
[1767502153307,0.00379649,3154.6,3153.3,1.52593893]
[1767502153708,0.00379649,3154.6,3153.3,1.38084489]
[1767502154409,0.00379649,3154.6,3153.3,1.38140371]
[1767502154809,0.00379649,3154.6,3153.3,0.00475813]
[1767502155009,0.14141742,3154.6,3153.3,0.00475813]
[1767502158620,0.66833816,3154.6,3153.3,0.00475813]
[1767502159315,0.53071723,3154.6,3153.3,0.14985217]
[1767502159516,0.53071723,3154.6,3153.3,1.50957877]
[1767502160819,0.53071723,3154.6,3153.3,0.14985217]
[1767502161020,0.53071723,3154.6,3153.3,1.52511159]
[1767502161612,0.53071723,3154.6,3153.3,0.14985217]
[1767502161812,0.53071723,3154.6,3153.3,1.52511159]
[1767502162416,0.53071723,3154.6,3153.3,1.54843358]
[1767502163616,0.53071723,3154.6,3153.3,1.55741106]
[1767502163818,0.66833816,3154.6,3153.3,1.41231702]
[1767502164422,0.13762093,3154.5,3153.3,1.41231702]
[1767502164623,0.13762093,3154.5,3153.3,1.39680725]
[1767502165012,0.13762093,3154.5,3153.3,0.00475813]
[1767502165214,0.52692074,3154.0,3153.3,1.39680725]
[1767502165418,0.52692074,3154.0,3153.3,1.39688117]
[1767502166719,0.52692074,3154.0,3153.3,0.00475813]
[1767502166922,0.52692074,3154.0,3153.3,1.39947928]
[1767502167527,0.52692074,3154.0,3153.3,0.00475813]
[1767502171720,0.15859,3154.2,3153.3,0.00475813]
[1767502180822,0.00379649,3154.6,3153.3,0.00475813]
[1767502181023,4.194,3154.5,3153.3,0.00475813]
[1767502183726,0.13933047,3154.2,3153.3,0.00475813]
[1767502183928,0.52692074,3153.7,3152.0,0.29695958]
[1767502184131,0.52692074,3153.7,3152.1,0.13826958]
[1767502185122,0.00475813,3153.2,3152.6,0.00475813]
[1767502187019,4.194,3153.8,3152.6,0.00475813]
[1767502188336,4.094,3153.8,3152.6,0.14302771]
[1767502188639,4.33333047,3154.0,3152.6,0.14302771]
[1767502189729,0.13933047,3154.0,3152.6,0.14302771]
[1767502190035,4.194,3154.1,3152.8,0.52692074]
[1767502195738,0.13933047,3154.0,3152.6,0.00475813]
[1767502196638,0.13933047,3153.7,3152.6,0.00475813]
[1767502197137,0.66625121,3153.7,3152.6,0.00475813]
[1767502200540,0.13191855,3153.6,3152.6,0.00475813]
[1767502210348,0.13191855,3154.0,3152.6,0.00475813]
[1767502218450,0.15859,3154.1,3152.6,0.00475813]
[1767502218451,0.13191855,3153.8,3152.6,0.00475813]
[1767502224055,0.13191855,3153.5,3151.8,3.172]
[1767502224958,0.13191855,3153.5,3152.3,0.00475813]
[1767502225354,0.13191855,3153.4,3152.3,0.00475813]
[1767502225549,0.13191855,3153.1,3152.3,0.00475813]
[1767502227362,0.13191855,3153.1,3151.7,0.00227377]
[1767502228658,0.13191855,3153.1,3152.1,0.00475813]
[1767502231155,0.13191855,3153.1,3151.7,0.00227377]
[1767502231762,0.13191855,3153.1,3151.7,0.13929248]
[1767502232260,0.13191855,3153.1,3152.1,0.00475813]
[1767502258487,0.29055855,3153.1,3152.1,0.00475813]
[1767502258889,0.13860938,3153.0,3152.1,0.00475813]
[1767502260490,0.13860938,3153.0,3151.7,0.00227377]
[1767502261797,0.13535296,3152.8,3152.0,0.00475813]
[1767502262100,0.13535296,3152.6,3152.0,0.00475813]
[1767502265491,0.13535296,3152.6,3151.7,0.00227377]
[1767502267704,0.13535296,3152.6,3151.5,0.03299]
[1767502268700,0.13535296,3152.6,3151.5,0.03652043]
[1767502269300,0.13535296,3152.5,3150.6,0.15877]
[1767502270005,0.13535296,3152.5,3150.6,0.29769659]
[1767502270194,0.13535296,3152.5,3150.6,0.30004012]
[1767502272003,4.35167,3152.6,3150.6,0.30004012]
[1767502272004,0.13535296,3152.2,3150.6,0.14127012]
[1767502272196,0.13866155,3152.2,3150.6,0.14127012]
[1767502273597,0.13866155,3152.2,3151.1,0.00317208]
[1767502275503,0.13535296,3152.1,3151.1,0.00317208]
[1767502276399,0.29405296,3152.0,3151.1,0.00317208]
[1767502276607,0.13535296,3151.9,3150.6,0.00234353]
[1767502277607,0.00475813,3151.6,3150.6,0.00234353]
[1767502280315,0.14011109,3151.6,3150.6,0.00234353]
[1767502281810,0.00475813,3151.6,3150.6,0.00234353]
[1767502282011,0.00475813,3151.6,3150.8,0.6668109]
[1767502288113,0.00475813,3151.6,3150.8,0.13892659]
[1767502290512,0.00475813,3151.6,3150.9,0.52788431]
[1767502293120,0.00475813,3151.6,3150.8,0.13892659]
[1767502294227,0.00475813,3151.6,3150.6,0.00234353]
[1767502298829,0.52788431,3151.4,3150.6,0.00234353]
[1767502299731,0.662322,3151.4,3150.6,0.00234353]
[1767502301330,0.52788431,3151.1,3149.9,0.13441566]
[1767502301635,0.662322,3151.4,3149.9,0.13441566]
[1767502302129,0.13443769,3151.3,3149.9,0.13441566]
[1767502302434,0.13443769,3151.3,3149.9,0.00381348]
[1767502305537,0.13443769,3151.3,3149.9,0.13822914]
[1767502306536,0.16347813,3151.6,3150.1,0.52788431]
[1767502306836,1.03136942,3151.5,3150.1,0.66229997]
[1767502307026,0.16347813,3151.6,3150.1,0.66229997]
[1767502307224,1.03136896,3151.5,3150.1,0.66229997]
[1767502307429,0.29791582,3151.6,3150.1,0.66229997]
[1767502308227,0.29791582,3151.6,3150.1,0.13441566]
[1767502308839,0.13443769,3151.3,3149.9,0.00381348]
[1767502319735,0.13443769,3151.0,3149.9,0.00381348]
[1767502323255,0.29209327,3151.3,3149.9,0.00381348]
[1767502323958,0.13336327,3151.2,3149.9,0.00381348]
[1767502337568,0.13336327,3151.2,3149.9,0.53169779]
[1767502340470,0.13336327,3151.2,3149.9,0.00381348]
[1767502346470,0.1381214,3151.6,3149.9,6.00381348]
[1767502346772,0.13336327,3151.4,3149.9,0.00381348]
[1767502359182,0.13551049,3151.2,3149.9,0.00381348]
[1767502379303,0.13551049,3151.2,3149.9,0.14738753]
[1767502383098,0.14228904,3151.6,3149.9,0.14738753]
[1767502383295,1.16933872,3151.5,3149.9,0.14738753]
[1767502383495,1.03180781,3151.4,3149.9,0.14738753]
[1767502383695,0.13753091,3151.5,3149.9,0.14738753]
[1767502383898,1.03180529,3151.4,3149.9,0.14738753]
[1767502384096,0.13753091,3151.5,3149.9,0.14738753]
[1767502384298,1.03179187,3151.4,3149.9,0.14738753]
[1767502384596,0.13753091,3151.5,3149.9,0.14738753]
[1767502384794,1.03178884,3151.4,3149.9,0.14738753]
[1767502384993,0.13753091,3151.5,3149.9,0.14738753]
[1767502385194,1.0317879,3151.4,3149.9,0.14738753]
[1767502385404,0.13753091,3151.5,3149.9,0.14738753]
[1767502385603,1.03177181,3151.4,3149.9,0.14738753]
[1767502385795,0.13753091,3151.5,3149.9,0.14738753]
[1767502385996,1.03177181,3151.4,3149.9,0.14738753]
[1767502386296,0.13753091,3151.5,3149.9,0.14738753]
[1767502386499,1.031765,3151.4,3149.9,0.14738753]
[1767502386798,0.13753091,3151.5,3149.9,0.14738753]
[1767502386996,1.03176568,3151.4,3149.9,0.14738753]
[1767502387197,0.13753091,3151.5,3149.9,0.14738753]
[1767502387494,1.03176245,3151.4,3149.9,0.14738753]
[1767502387695,0.13753091,3151.5,3149.9,0.14738753]
[1767502387894,1.03176199,3151.4,3149.9,0.14738753]
[1767502388092,0.13753091,3151.5,3149.9,0.14738753]
[1767502388390,1.0317544,3151.4,3149.9,0.14738753]
[1767502388594,0.13753091,3151.5,3149.9,0.14738753]
[1767502388794,1.03175621,3151.4,3149.9,0.14738753]
[1767502388996,0.13753091,3151.5,3149.9,0.14738753]
[1767502389196,1.16928712,3151.4,3149.9,0.14738753]
[1767502389399,0.13753091,3151.4,3149.9,0.14738753]
[1767502402622,0.13753091,3151.4,3150.3,0.5278139]
[1767502408926,0.13753091,3151.4,3150.2,0.5278139]
[1767502410221,0.13753091,3151.4,3149.9,0.53162738]
[1767502413525,0.13753091,3151.4,3149.9,0.00381348]
[1767502413730,0.13469175,3151.3,3149.9,0.00381348]
[1767502415230,0.13469175,3151.0,3149.9,0.00381348]
[1767502428240,0.13469175,3150.9,3149.9,0.00381348]
[1767502429739,0.13469175,3150.6,3149.9,0.00381348]
[1767502438545,0.13469175,3150.6,3149.3,4.439]
[1767502438845,0.13469175,3150.6,3149.0,0.6617961]
[1767502439656,0.13469175,3150.6,3149.0,0.66524718]
[1767502440448,0.15875,3151.0,3149.3,0.66589568]
[1767502440654,0.82778444,3151.0,3149.4,0.66589568]
[1767502440952,1.16806492,3150.9,3149.4,0.66589568]
[1767502441157,0.14122054,3150.9,3149.4,0.66589568]
[1767502441551,0.14122054,3150.9,3149.4,0.13808178]
[1767502447657,0.66903444,3150.7,3149.0,0.00345108]
[1767502447853,0.14122054,3150.6,3149.0,0.14153286]
[1767502449460,0.5278139,3150.4,3149.0,0.14153286]
[1767502449661,0.00475813,3150.0,3149.0,0.14153286]
[1767502450754,0.00475813,3150.0,3149.1,6.0]
[1767502454253,0.00475813,3150.0,3149.0,0.14153286]
[1767502454758,0.00475813,3150.0,3149.0,0.00345108]
[1767502455361,0.14597867,3150.0,3149.0,0.00345108]
[1767502462467,0.14122054,3149.8,3149.0,0.00345108]
[1767502462666,0.14515375,3149.8,3149.0,0.00345108]
[1767502462861,0.00393321,3149.8,3149.0,0.00345108]
[1767502471061,0.14830625,3149.8,3149.0,0.00345108]
[1767502471472,0.14830625,3149.8,3148.3,0.15888]
[1767502471862,0.14830625,3149.8,3148.1,4.461]
[1767502472669,0.14830625,3149.8,3148.1,4.4639246]
[1767502472970,0.14124717,3149.4,3148.1,0.0029246]
[1767502496287,0.14124717,3149.7,3148.2,0.1346423]
[1767502522724,0.14124717,3149.7,3148.5,0.52843958]
[1767502527126,1.03046934,3149.6,3148.5,0.52843958]
[1767502527327,0.14124717,3149.7,3148.5,0.52843958]
[1767502527526,1.03046934,3149.6,3148.5,0.52843958]
[1767502527728,0.14124717,3149.7,3148.5,0.52843958]
[1767502527928,1.03046934,3149.6,3148.5,0.52843958]
[1767502528230,0.14124717,3149.7,3148.5,0.52843958]
[1767502528432,1.03047265,3149.6,3148.5,0.52843958]
[1767502528726,0.14124717,3149.7,3148.5,0.52843958]
[1767502529031,1.03047334,3149.6,3148.5,0.52843958]
[1767502529222,0.14124717,3149.7,3148.5,0.52843958]
[1767502529421,1.03047758,3149.6,3148.5,0.52843958]
[1767502529618,0.14124717,3149.7,3148.5,0.52843958]
[1767502529830,1.17054966,3149.6,3148.3,0.52843958]
[1767502530023,0.14007231,3149.6,3148.3,0.52843958]
[1767502535234,0.14007231,3149.6,3148.6,0.52843958]
[1767502538833,0.14007231,3149.6,3148.3,0.52843958]
[1767502540837,0.14007231,3149.6,3148.4,0.52843958]
[1767502541140,0.14007231,3149.6,3148.2,0.1346423]
[1767502541326,0.14007231,3149.6,3148.3,0.52843958]
[1767502547242,0.00393321,3149.8,3148.3,0.67115262]
[1767502547443,1.03241487,3149.7,3148.6,0.52843958]
[1767502547634,1.03241487,3149.6,3148.6,0.52843958]
[1767502547833,0.00393321,3149.8,3148.6,0.52843958]
[1767502548040,1.03241487,3149.7,3148.6,0.52843958]
[1767502548242,1.03241487,3149.6,3148.6,0.52843958]
[1767502548442,0.00393321,3149.8,3148.6,0.52843958]
[1767502548649,1.03241799,3149.7,3148.6,0.52843958]
[1767502548943,1.03241799,3149.6,3148.6,0.52843958]
[1767502549246,0.00393321,3149.8,3148.6,0.52843958]
[1767502549447,1.03242072,3149.7,3148.6,0.52843958]
[1767502549634,1.03242072,3149.6,3148.6,0.52843958]
[1767502549840,0.00393321,3149.8,3148.6,0.52843958]
[1767502550134,1.03242049,3149.7,3148.6,0.52843958]
[1767502550333,1.03242049,3149.6,3148.6,0.52843958]
[1767502550534,0.00393321,3149.8,3148.6,0.52843958]
[1767502550738,1.03242318,3149.7,3148.6,0.52843958]
[1767502550947,1.03242318,3149.6,3148.4,0.52843958]
[1767502551140,0.1410615,3149.8,3148.4,0.52843958]
[1767502551335,1.03242558,3149.7,3148.4,0.52843958]
[1767502551536,1.03242558,3149.6,3148.4,0.52843958]
[1767502551742,0.1410615,3149.8,3148.4,0.52843958]
[1767502551946,1.03242581,3149.7,3148.4,0.52843958]
[1767502552237,1.03242581,3149.6,3148.4,0.52843958]
[1767502552436,0.1410615,3149.8,3148.4,0.52843958]
[1767502552638,1.03242764,3149.7,3148.4,0.52843958]
[1767502552845,1.03242764,3149.6,3148.4,0.52843958]
[1767502557660,1.03242764,3149.6,3148.3,0.14271304]
[1767502557950,1.03242764,3149.6,3148.3,0.67115262]
[1767502561652,1.16317856,3149.6,3148.3,0.52843958]
[1767502561853,0.13075092,3149.6,3148.3,0.52843958]
[1767502567665,0.13075092,3149.3,3148.1,0.0029246]
[1767502568072,0.13075092,3149.2,3148.1,0.0029246]
[1767502569671,0.52843958,3149.1,3148.1,0.0029246]
[1767502571372,0.6591905,3149.1,3148.1,0.0029246]
[1767502573175,0.13075092,3149.0,3148.1,0.0029246]
[1767502594180,0.13912386,3149.4,3148.1,0.0029246]
[1767502597093,1.03430021,3149.3,3148.1,0.0029246]
[1767502597297,0.13912386,3149.4,3148.1,0.0029246]
[1767502597498,1.03430021,3149.3,3148.1,0.0029246]
[1767502597698,0.13912386,3149.4,3148.1,0.0029246]
[1767502597899,1.03430021,3149.3,3148.1,0.0029246]
[1767502598096,0.13912386,3149.4,3148.1,0.0029246]
[1767502598290,1.03430135,3149.3,3148.1,0.0029246]
[1767502598495,0.13912386,3149.4,3148.1,0.0029246]
[1767502598703,1.03430112,3149.3,3148.1,0.0029246]
[1767502598901,0.13912386,3149.4,3148.1,0.0029246]
[1767502599093,1.03425584,3149.3,3148.1,0.0029246]
[1767502599292,0.13912386,3149.4,3148.1,0.0029246]
[1767502599490,1.03425715,3149.3,3148.1,0.0029246]
[1767502599691,0.13912386,3149.4,3148.1,0.0029246]
[1767502599899,1.03424121,3149.3,3148.1,0.0029246]
[1767502600100,0.13912386,3149.4,3148.1,0.0029246]
[1767502600293,1.03423559,3149.3,3148.1,0.0029246]
[1767502600494,0.13912386,3149.4,3148.1,0.0029246]
[1767502600694,1.03423559,3149.3,3148.1,0.0029246]
[1767502600894,0.13912386,3149.4,3148.1,0.0029246]
[1767502601195,1.03423559,3149.3,3148.1,0.0029246]
[1767502601396,0.13912386,3149.4,3148.1,0.0029246]
[1767502601701,1.03423082,3149.3,3148.1,0.0029246]
[1767502601901,0.13912386,3149.4,3148.1,0.0029246]
[1767502602104,1.03423053,3149.3,3148.1,0.0029246]
[1767502602303,0.13912386,3149.4,3148.1,0.0029246]
[1767502602505,1.03429373,3149.3,3148.1,0.0029246]
[1767502602696,0.13912386,3149.4,3148.1,0.0029246]
[1767502602895,1.0342935,3149.3,3148.1,0.0029246]
[1767502603098,0.13912386,3149.4,3148.1,0.0029246]
[1767502603302,1.03427613,3149.3,3148.1,0.0029246]
[1767502603501,0.13912386,3149.4,3148.1,0.0029246]
[1767502603705,1.03427636,3149.3,3148.1,0.0029246]
[1767502603903,0.13912386,3149.4,3148.1,0.0029246]
[1767502604107,1.03427636,3149.3,3148.1,0.0029246]
[1767502604406,0.13912386,3149.4,3148.1,0.0029246]
[1767502604607,1.03423204,3149.3,3148.1,0.0029246]
[1767502604803,0.13912386,3149.4,3148.1,0.0029246]
[1767502604997,1.03423204,3149.3,3148.1,0.0029246]
[1767502605196,0.13912386,3149.4,3148.1,0.0029246]
[1767502605401,1.0342199,3149.3,3148.1,0.0029246]
[1767502605695,0.13912386,3149.4,3148.1,0.0029246]
[1767502605899,1.0342199,3149.3,3148.1,0.0029246]
[1767502606099,0.13912386,3149.4,3148.1,0.0029246]
[1767502606299,1.03421056,3149.3,3148.1,0.0029246]
[1767502606501,0.13912386,3149.4,3148.1,0.0029246]
[1767502606701,1.03421056,3149.3,3148.1,0.0029246]
[1767502606903,0.13912386,3149.4,3148.1,0.0029246]
[1767502607207,1.03421056,3149.3,3148.1,0.0029246]
[1767502607403,0.13912386,3149.4,3148.1,0.0029246]
[1767502607604,1.03420236,3149.3,3148.1,0.0029246]
[1767502607807,0.13912386,3149.4,3148.1,0.0029246]
[1767502608099,1.03420222,3149.3,3148.1,0.0029246]
[1767502608300,0.13912386,3149.4,3148.1,0.0029246]
[1767502608497,1.03419419,3149.3,3148.1,0.0029246]
[1767502608701,0.13912386,3149.4,3148.1,0.0029246]
[1767502608896,0.13912386,3149.2,3148.1,0.0029246]
[1767502622714,0.14227026,3149.6,3148.1,6.13658665]
[1767502622922,0.14227026,3149.6,3148.1,0.13658665]
[1767502625727,0.00393321,3149.8,3148.1,0.13658665]
[1767502627116,0.14620347,3149.8,3148.1,0.13658665]
[1767502632327,0.14620347,3149.8,3148.1,0.0029246]
[1767502640132,0.14620347,3149.8,3148.1,0.13658665]
[1767502642226,0.14620347,3149.8,3148.1,0.0029246]
[1767502646129,0.14620347,3149.8,3148.1,0.13658665]
[1767502646536,0.14620347,3149.8,3148.5,0.52842932]
[1767502649138,1.03552271,3149.7,3148.5,0.52842932]
[1767502649435,0.14227026,3149.7,3148.5,0.52842932]
[1767502652129,0.00393321,3149.8,3148.5,0.52842932]
[1767502652531,0.00393321,3149.8,3148.8,0.52842932]
[1767502660546,0.00393321,3149.8,3148.8,6.52842932]
[1767502661449,0.00393321,3149.8,3148.8,6.6714503]
[1767502661948,0.00393321,3149.8,3149.1,0.52842932]
[1767502667148,0.00475813,3150.0,3149.1,0.6714503]
[1767502668146,0.00805677,3150.0,3149.1,0.6714503]
[1767502670251,0.67568952,3150.9,3149.4,0.52842932]
[1767502671346,0.00475813,3150.5,3149.4,0.52842932]
[1767502671659,0.00475813,3150.5,3149.6,0.00475813]
[1767502682168,0.13923477,3150.4,3148.9,0.15885]
[1767502682364,0.13923477,3150.1,3148.5,1.13980249]
[1767502682560,0.13923477,3150.1,3148.5,0.52842932]
[1767502683063,0.13923477,3150.1,3148.8,0.52842932]
[1767502683665,1.0,3149.6,3148.8,0.52842932]
[1767502691079,1.0,3149.6,3148.5,0.52842932]
[1767502694174,1.0,3149.6,3148.4,0.13978047]
[1767502694374,1.0,3149.6,3148.5,0.52842932]
[1767502699390,1.13923477,3149.6,3148.4,4.43]
[1767502701078,0.13923477,3149.5,3148.3,4.59788]
[1767502701886,1.0,3149.6,3148.3,4.59788]
[1767502707702,1.0,3149.6,3148.3,4.439]
[1767502712709,7.0,3149.6,3148.3,4.439]
[1767502715009,7.13502335,3149.6,3148.3,4.439]
[1767502715203,0.13502335,3149.5,3148.3,4.439]
[1767502720617,1.0,3149.6,3148.3,4.439]
[1767502720818,1.0,3149.6,3148.4,0.13399912]
[1767502726916,1.0,3149.6,3148.3,4.439]
[1767502727116,1.13502335,3149.6,3148.3,4.439]
[1767502727315,0.13502335,3149.5,3148.3,4.439]
[1767502741437,0.13502335,3149.5,3148.1,0.0029246]
[1767502741744,0.13502335,3149.5,3148.1,0.1455045]
[1767502747651,1.0,3149.6,3148.1,0.1455045]
[1767502750752,1.13422877,3149.6,3148.1,0.1455045]
[1767502754960,0.13422877,3149.5,3148.1,0.1455045]
[1767502766060,0.13422877,3149.5,3148.1,0.0029246]
[1767502766553,0.66293081,3149.3,3148.1,0.0029246]
[1767502771758,0.13422877,3149.3,3148.1,0.0029246]
[1767502779156,1.0,3149.6,3148.3,0.52870204]
[1767502779364,1.03293024,3149.5,3148.3,0.52870204]
[1767502779565,1.0,3149.6,3148.3,0.52870204]
[1767502779763,1.03293462,3149.5,3148.3,0.52870204]
[1767502779958,1.0,3149.6,3148.3,0.52870204]
[1767502780156,1.03293466,3149.5,3148.3,0.52870204]
[1767502780358,1.0,3149.6,3148.3,0.52870204]
[1767502780565,1.03295891,3149.5,3148.3,0.52870204]
[1767502780765,1.13223493,3149.6,3148.3,0.52870204]
[1767502780966,1.03295893,3149.5,3148.3,0.52870204]
[1767502781161,1.13223493,3149.6,3148.3,0.52870204]
[1767502781466,1.03298485,3149.5,3148.3,0.52870204]
[1767502781666,1.13223493,3149.6,3148.3,0.52870204]
[1767502781860,1.03298471,3149.5,3148.3,0.52870204]
[1767502782065,1.13223493,3149.6,3148.3,0.52870204]
[1767502782364,1.03298472,3149.5,3148.3,0.52870204]
[1767502782565,1.13223493,3149.6,3148.3,0.52870204]
[1767502782762,1.0330155,3149.5,3148.3,0.52870204]
[1767502782968,1.13223493,3149.6,3148.3,0.52870204]
[1767502783169,1.03301527,3149.5,3148.3,0.52870204]
[1767502783369,1.13223493,3149.6,3148.3,0.52870204]
[1767502783567,1.03305159,3149.5,3148.3,0.52870204]
[1767502783863,1.13223493,3149.6,3148.3,0.52870204]
[1767502784068,1.03305159,3149.5,3148.3,0.52870204]
[1767502784267,1.13223493,3149.6,3148.3,0.52870204]
[1767502784464,1.03309655,3149.5,3148.3,0.52870204]
[1767502784665,1.13223493,3149.6,3148.3,0.52870204]
[1767502784964,1.033169,3149.5,3148.3,0.52870204]
[1767502785267,1.13223493,3149.6,3148.3,0.52870204]
[1767502801370,1.0,3149.6,3148.3,0.66011437]
[1767502802377,1.0,3149.6,3148.6,0.52870204]
[1767502828511,1.0,3149.6,3148.3,0.13141233]
[1767502828713,1.0,3149.6,3148.3,6.13141233]
[1767502833618,1.0,3149.6,3148.3,0.13141233]
[1767502835517,1.13309572,3149.6,3148.1,0.1618146]
[1767502835717,0.13309572,3149.5,3148.1,0.0029246]
[1767502845222,0.13309572,3149.5,3148.1,0.13452961]
[1767502845424,1.0,3149.6,3148.2,0.66004134]
[1767502845620,1.0,3149.6,3148.3,0.13160501]
[1767502860034,6.1444205,3149.5,3148.1,0.0029246]
[1767502860240,0.1444205,3149.4,3148.1,0.0029246]